fUSD/lending_fUSD_20250614
["ID","MTS","AMOUNT","RATE_DAILY","PERIOD"]
[365786418,1749912640820,-171.55152656,0.000169,2]
[365786420,1749912640829,-248.94,0.000169,2]
[365786422,1749912640839,-248.21,0.000169,2]
[365786424,1749912640848,-304.96,0.000169,2]
[365786426,1749912640859,-254.77,0.000169,2]
[365786428,1749912640868,-246.92,0.000169,2]
[365786430,1749912640877,-1000.0,0.00016917,2]
[365786432,1749912640886,-150.0,0.00016918,2]
[365786434,1749912640896,-961.90340895,0.00016934,2]
[365786436,1749912640905,-195.11176608,0.00016942,2]
[365786475,1749912640914,-150.0,0.00016955,2]
[365786478,1749912641267,-1000.0,0.00016955,2]
[365786480,1749912641277,-150.0,0.00016956,2]
[365786482,1749912641286,-150.0,0.00016964,2]
[365786484,1749912641295,-500.0,0.00016973,2]
[365786486,1749912641305,-502.52909233,0.00016973,2]
[365786488,1749912641314,-594.08918556,0.00016973,2]
[365786490,1749912641323,-500.0,0.00016973,2]
[365786492,1749912641333,-500.0,0.00016973,2]
[365786494,1749912641342,-500.0,0.00016973,2]
[365786496,1749912641351,-500.0,0.00016973,2]
[365786498,1749912641361,-563.19258255,0.00016973,2]
[365786500,1749912641370,-500.0,0.00016973,2]
[365786502,1749912641379,-500.0,0.00016973,2]
[365786504,1749912641388,-500.0,0.00016973,2]
[365786506,1749912641397,-168.0,0.00016979,2]
[365786508,1749912641407,-151.0,0.0001699,2]
[365786510,1749912641416,-151.0,0.0001699,2]
[365786512,1749912641426,-171.07346995,0.0001699,2]
[365786514,1749912641435,-1000.0,0.00016994,2]
[365786516,1749912641444,-235598.03780022,0.00016995,2]
[365786518,1749912641453,-150.0,0.00016995,2]
[365786520,1749912641463,-281.56550501,0.00016995,2]
[365786522,1749912641472,-150.0,0.00016995,2]
[365786524,1749912641482,-150.0,0.00016995,2]
[365786526,1749912641491,-150.0,0.00016995,2]
[365786528,1749912641500,-150.0,0.00016995,2]
[365786530,1749912641509,-150.0,0.00016995,2]
[365786532,1749912641518,-300.0,0.00016997,2]
[365786534,1749912641527,-300.0,0.00016997,2]
[365786536,1749912641537,-500.0,0.00016997,2]
[365786538,1749912641546,-500.0,0.00016997,2]
[365786540,1749912641555,-371.07593317,0.00016997,2]
[365786542,1749912641565,-500.0,0.00016997,2]
[365786543,1749912641575,-423.63708434,0.00016997,2]
[365786545,1749912641585,-500.0,0.00016997,2]
[365786548,1749912641595,-500.0,0.00016997,2]
[365786549,1749912641604,-500.0,0.00016997,2]
[365786552,1749912641613,-319.41012254,0.00016997,2]
[365786554,1749912641624,-1000.0,0.00016997,2]
[365786556,1749912641633,-150.0,0.00016997,2]
[365786558,1749912641642,-150.0,0.00016997,2]
[365786560,1749912641651,-150.0,0.00016997,2]
[365786562,1749912641664,-158.77517985,0.00016997,2]
[365786564,1749912641674,-500.0,0.00016997,2]
[365786566,1749912641683,-500.0,0.00016997,2]
[365786568,1749912641694,-150.0,0.00016997,2]
[365786570,1749912641703,-150.0,0.00016997,2]
[365786572,1749912641715,-150.0,0.00016997,2]
[365786574,1749912641724,-150.0,0.00016997,2]
[365786576,1749912641733,-150.0,0.00016997,2]
[365786578,1749912641745,-150.0,0.00016997,2]
[365786580,1749912641755,-150.0,0.00016997,2]
[365786582,1749912641764,-500.0,0.00016997,2]
[365786584,1749912641774,-150.0,0.00016997,2]
[365786586,1749912641783,-500.0,0.00016997,2]
[365786588,1749912641792,-150.0,0.00016997,2]
[365786590,1749912641802,-150.0,0.00016997,2]
[365786592,1749912641811,-150.0,0.00016997,2]
[365786594,1749912641821,-150.0,0.00016997,2]
[365786596,1749912641830,-150.0,0.00016997,2]
[365786598,1749912641839,-150.0,0.00016997,2]
[365786600,1749912641849,-150.0,0.00016997,2]
[365786602,1749912641858,-300.0,0.00016997,2]
[365786604,1749912641867,-300.0,0.00016997,2]
[365786606,1749912641877,-811083.25931723,0.00016998,2]
[365786640,1749912642193,-650.12883634,0.00016998,2]
[365786644,1749912642216,-659.6249505,0.00016998,2]
[365786646,1749912642228,-2687.0,0.00016998,2]
[365786710,1749912643267,-26914.78336956,0.00016998,2]
[365786722,1749912643366,-503.8733354,0.00016998,2]
[365786841,1749912646669,-2662.0,0.00016998,2]
[365786842,1749912720340,271.67045217,0.00015068,2]
[365786843,1749912720365,428.32954783,0.00015068,2]
[365786844,1749912778640,1280.0,0.00025,120]
[365786845,1749912793523,1280.0,0.00025,120]
[365786846,1749912806936,1241.57,0.00025,120]
[365786847,1749912857578,250.0,0.00015867,2]
[365786848,1749912878658,200.0,0.00015853,2]
[365786850,1749912921805,2751.0,0.00015853,2]
[365786852,1749912959917,800.0,0.00015068,2]
[365786854,1749913018656,2271.35,0.00015846,2]
[365786855,1749913031312,168.0,0.0001559,2]
[365786856,1749913033041,200.0,0.00015845,2]
[365786857,1749913034351,168.0,0.00014935,2]
[365786858,1749913127120,2536.0,0.00025,120]
[365786860,1749913198825,227.36,0.00013699,2]
[365786862,1749913203718,162.64720164,0.00015994,2]
[365786863,1749913211881,200.0,0.0001528,2]
[365786864,1749913212140,200.0,0.00015732,2]
[365786865,1749913227424,150.0,0.00015824,2]
[365786867,1749913251378,224.0,0.0001528,2]
[365786868,1749913264044,813.14,0.00015814,2]
[365786869,1749913271407,786.17325053,0.00013909,2]
[365786870,1749913271430,425.86674947,0.00013909,2]
[365786871,1749913405449,666.0,0.00015812,2]
[365786872,1749913407116,500.0,0.00024999,120]
[365786874,1749913469371,559.32,0.00015804,2]
[365786875,1749913578281,200.0,0.00015184,2]
[365786876,1749913578558,200.0,0.00015641,2]
[365786877,1749913608736,219.0,0.00015184,2]
[365786878,1749913609639,150.0,0.00015184,2]
[365786885,1749913654872,152.0,0.00015958,3]
[365786886,1749913698610,736.03,0.00015775,2]
[365786890,1749913751769,200.0,0.00015771,7]
[365786891,1749913831416,-1905.48,0.0001601,2]
[365786892,1749913831437,-250.0,0.00016012,2]
[365786893,1749913831458,-600.0,0.00016014,4]
[365786894,1749913831469,-1000.0,0.00016017,2]
[365786895,1749913831479,-167.55,0.00016026,2]
[365786896,1749913831489,-200.0,0.00016098,3]
[365786897,1749913831499,-500.0,0.00016164,2]
[365786898,1749913831509,-1212.04,0.00016172,2]
[365786899,1749913831519,-168.0,0.00016231,2]
[365786900,1749913831528,-1200.0,0.00016299,2]
[365786901,1749913831538,-200.0,0.000163,5]
[365786902,1749913831547,-454.96,0.000163,2]
[365786903,1749913831557,-300.0,0.000163,2]
[365786904,1749913831566,-300.0,0.000163,5]
[365786905,1749913831576,-500.0,0.000164,5]
[365786917,1749913831904,-600.0,0.000164,5]
[365786921,1749913831935,-797.31,0.00016424,2]
[365786924,1749913831945,-461.5,0.00016424,2]
[365786925,1749913831955,-961.90340895,0.00016428,2]
[365786927,1749913831964,-207.4,0.00016428,2]
[365786929,1749913831974,-152.0,0.00016428,4]
[365786931,1749913831983,-300.0,0.00016436,2]
[365786933,1749913831993,-800.0,0.00016438,2]
[365786935,1749913832002,-6271.07,0.00016438,2]
[365786937,1749913832012,-412.0,0.00016493,2]
[365786939,1749913832022,-163.37,0.000165,2]
[365786941,1749913832031,-150.0,0.000165,2]
[365786942,1749913832041,-300.88,0.000165,2]
[365786944,1749913832050,-461.5,0.000165,2]
[365786946,1749913832061,-700.0,0.000165,6]
[365786948,1749913832075,-900.0,0.000165,6]
[365786950,1749913832084,-267.0,0.00016503,2]
[365786952,1749913832093,-1715.0,0.00016538,2]
[365786954,1749913832103,-200.0,0.00016556,3]
[365786956,1749913832114,-461.5,0.000166,2]
[365786958,1749913832123,-1000.0,0.000166,6]
[365786960,1749913832132,-1200.0,0.000166,6]
[365786962,1749913832142,-304.0,0.00016621,2]
[365786964,1749913832152,-150.0,0.00016652,2]
[365786965,1749913832162,-291.77,0.000167,2]
[365786968,1749913832172,-1200.0,0.000167,6]
[365786969,1749913832182,-1000.0,0.000167,2]
[365786971,1749913832191,-1600.0,0.000167,6]
[365786973,1749913832201,-3996.399,0.0001672,2]
[365786975,1749913832210,-150.0,0.00016746,2]
[365786977,1749913832220,-150.0,0.00016747,2]
[365786979,1749913832229,-150.0,0.00016748,2]
[365786981,1749913832238,-300.0,0.0001675,2]
[365786983,1749913832249,-300.0,0.0001675,2]
[365786985,1749913832259,-150.0,0.00016752,2]
[365786987,1749913832269,-150.0,0.00016764,2]
[365786989,1749913832278,-150.0,0.00016773,2]
[365786991,1749913832287,-150.0,0.00016785,2]
[365786993,1749913832297,-150.0,0.00016788,2]
[365786995,1749913832309,-150.0,0.00016791,2]
[365786997,1749913832318,-150.0,0.00016794,2]
[365786999,1749913832328,-379.2638,0.000168,2]
[365787001,1749913832337,-2190.7298,0.000168,2]
[365787003,1749913832346,-8606.81400234,0.000168,2]
[365787005,1749913832356,-200.0,0.000168,6]
[365787007,1749913832365,-2500.0,0.000168,2]
[365787009,1749913832375,-2453.6426,0.000168,2]
[365787011,1749913832384,-158.40630172,0.000168,2]
[365787013,1749913832393,-301.92743338,0.000168,2]
[365787015,1749913832402,-300.0,0.000168,6]
[365787017,1749913832412,-150.0,0.00016804,2]
[365787019,1749913832421,-48.43508071,0.00016809,2]
[365787021,1749913832434,-101.56491929,0.00016809,2]
[365787023,1749913832443,-1418.34649691,0.00016811,2]
[365787025,1749913832455,-4868.91680251,0.00016811,2]
[365787030,1749913832487,-530.89572595,0.00016811,2]
[365787032,1749913832499,-1788.65497693,0.00016811,2]
[365787034,1749913832508,-692.82122307,0.00016822,2]
[365787036,1749913832520,-525.99871899,0.00016822,2]
[365787038,1749913832531,-869.4,0.00016822,2]
[365787040,1749913832543,-6518.59406024,0.00016822,2]
[365787042,1749913832552,-300.0,0.00016828,2]
[365787044,1749913832562,-300.0,0.00016828,2]
[365787046,1749913832571,-150.0,0.0001683,2]
[365787048,1749913832580,-150.0,0.00016832,2]
[365787050,1749913832589,-8606.8140023,0.00016833,2]
[365787052,1749913832599,-563.0,0.00016838,2]
[365787054,1749913832609,-195.11176608,0.00016838,2]
[365787056,1749913832618,-4897.81901532,0.00016844,2]
[365787058,1749913832630,-3708.99498698,0.00016844,2]
[365787060,1749913832640,-8301.8175394,0.00016856,2]
[365787516,1749913837353,-150.0,0.0001601,2]
[365787518,1749913837363,-117.75126631,0.00016856,2]
[365787527,1749913837445,-187.24519659,0.00016856,2]
[365787529,1749913837460,-150.0,0.00016861,2]
[365787530,1749913837470,-568.01980346,0.00016864,2]
[365787531,1749913837482,-1431.98019654,0.00016864,2]
[365787532,1749913837492,-540.0657115,0.00016865,2]
[365787533,1749913837501,-5262.43416395,0.00016867,2]
[365787649,1749913838656,1456.05,0.0001593,2]
[365787746,1749913839517,-3344.37983835,0.00016867,2]
[365787750,1749913839530,-1000.0,0.0001687,2]
[365787753,1749913839540,-150.0,0.00016875,2]
[365787755,1749913839549,-8606.8140023,0.00016878,2]
[365787762,1749913839572,-192.60780138,0.00016879,2]
[365787766,1749913839588,-1298.192,0.0001688,2]
[365787771,1749913839606,-300.0,0.00016883,2]
[365787776,1749913839628,-151.0,0.00016888,2]
[365787780,1749913839645,-151.0,0.00016888,2]
[365787785,1749913839661,-763.26968688,0.00016888,2]
[365787790,1749913839680,-171.07346995,0.00016888,2]
[365787795,1749913839701,-5413.28019154,0.00016889,2]
[365787800,1749913839727,-3193.53381076,0.00016889,2]
[365787805,1749913839746,-5000.0,0.00016898,2]
[365787811,1749913839766,-10158.3327,0.00016898,2]
[365787815,1749913839787,-274.60430912,0.00016898,2]
[365787818,1749913839801,-481.94522089,0.00016898,2]
[365787823,1749913839819,-973.4904,0.00016898,2]
[365787828,1749913839836,-500.0,0.00016898,2]
[365787832,1749913839851,-152.0,0.00016898,5]
[365787836,1749913839869,-150.0,0.00016899,2]
[365787841,1749913839882,-150.0,0.00016899,2]
[365787846,1749913839908,-150.0,0.00016899,2]
[365787850,1749913839924,-158.77517985,0.00016899,2]
[365787854,1749913839941,-500.0,0.00016899,2]
[365787859,1749913839957,-500.0,0.00016899,2]
[365787863,1749913839974,-150.0,0.00016899,2]
[365787867,1749913839991,-150.0,0.00016899,2]
[365787871,1749913840008,-150.0,0.00016899,2]
[365787875,1749913840027,-150.0,0.00016899,2]
[365787879,1749913840044,-150.0,0.00016899,2]
[365787884,1749913840064,-500.0,0.00016899,2]
[365787888,1749913840082,-150.0,0.00016899,2]
[365787892,1749913840100,-155.3326371,0.00016899,2]
[365787894,1749913840115,-206.59612768,0.00016899,2]
[365787907,1749913840196,-19.77838437,0.00016899,2]
[365787912,1749913840212,-281.56550501,0.00016899,2]
[365787917,1749913840228,-150.0,0.00016899,2]
[365787921,1749913840245,-150.0,0.00016899,2]
[365787925,1749913840260,-150.0,0.00016899,2]
[365787928,1749913840275,-150.0,0.00016899,2]
[365787931,1749913840289,-150.0,0.00016899,2]
[365787935,1749913840304,-150.0,0.00016899,2]
[365787940,1749913840320,-150.0,0.00016899,2]
[365787943,1749913840335,-150.0,0.00016899,2]
[365787947,1749913840350,-150.0,0.00016899,2]
[365787950,1749913840365,-150.0,0.00016899,2]
[365787954,1749913840381,-155.0,0.00016899,2]
[365787957,1749913840397,-884.0,0.00016899,2]
[365787961,1749913840411,-1160.0,0.00016899,2]
[365787964,1749913840427,-200.0,0.000169,6]
[365787968,1749913840442,-300.0,0.000169,6]
[365787973,1749913840457,-7736.054936,0.000169,2]
[365788231,1749913842608,-440.709,0.000169,2]
[365788233,1749913842624,-612414.37225032,0.000169,2]
[365788235,1749913842634,-150.0,0.000169,6]
[365788237,1749913842643,-150.0,0.000169,6]
[365788239,1749913842653,-150.0,0.000169,6]
[365788241,1749913842663,-8606.8140023,0.000169,2]
[365788243,1749913842672,-1000.0,0.000169,2]
[365788245,1749913842682,-153.64068744,0.000169,2]
[365788247,1749913842691,-5146.63177013,0.000169,2]
[365788249,1749913842701,-201.33957346,0.000169,2]
[365788251,1749913842710,-964.6273015,0.000169,2]
[365788253,1749913842720,-300.0,0.00016904,2]
[365788255,1749913842730,-850.14180599,0.00016924,2]
[365788257,1749913842740,-150.0,0.00016926,2]
[365788259,1749913842749,-150.0,0.00016926,2]
[365788261,1749913842758,-150.0,0.00016926,2]
[365788263,1749913842768,-500.0,0.00016926,2]
[365788265,1749913842781,-500.0,0.00016926,2]
[365788267,1749913842791,-150.0,0.00016926,2]
[365788269,1749913842800,-150.0,0.00016926,2]
[365788271,1749913842810,-150.0,0.00016926,2]
[365788273,1749913842819,-500.0,0.00016926,2]
[365788275,1749913842828,-150.0,0.00016926,2]
[365788277,1749913842837,-150.0,0.00016926,2]
[365788280,1749913842847,-200.0,0.00016926,2]
[365788282,1749913842856,-150.0,0.00016926,2]
[365788284,1749913842866,-150.0,0.00016926,2]
[365788287,1749913842875,-150.0,0.00016926,2]
[365788289,1749913842885,-200.0,0.00016927,6]
[365788291,1749913842894,-150.0,0.00016927,6]
[365788293,1749913842903,-300.0,0.0001694,2]
[365788295,1749913842913,-151.0,0.00016943,2]
[365788297,1749913842922,-150.0,0.00016951,2]
[365788299,1749913842932,-200.0,0.00016954,2]
[365788301,1749913842941,-150.0,0.00016954,2]
[365788304,1749913842951,-150.0,0.00016954,2]
[365788306,1749913842960,-150.0,0.00016954,2]
[365788308,1749913842970,-300.0,0.00016954,2]
[365788310,1749913842979,-200.0,0.00016954,2]
[365788312,1749913842989,-200.0,0.00016954,2]
[365788314,1749913842999,-500.0,0.00016954,2]
[365788316,1749913843008,-150.0,0.00016954,2]
[365788318,1749913843018,-150.0,0.00016954,2]
[365788320,1749913843029,-150.0,0.00016954,2]
[365788322,1749913843038,-150.0,0.00016954,2]
[365788324,1749913843048,-150.0,0.00016954,2]
[365788326,1749913843058,-150.0,0.00016955,6]
[365788328,1749913843072,-150.0,0.00016956,2]
[365788330,1749913843083,-1000.0,0.00016965,2]
[365788332,1749913843093,-150.0,0.0001697,2]
[365788335,1749913843102,-500.75857659,0.00016973,2]
[365788336,1749913843112,-500.0,0.00016973,2]
[365788339,1749913843122,-500.0,0.00016973,2]
[365788340,1749913843131,-500.0,0.00016973,2]
[365788342,1749913843142,-500.0,0.00016973,2]
[365788344,1749913843153,-500.0,0.00016973,2]
[365788346,1749913843163,-500.0,0.00016973,2]
[365788349,1749913843172,-500.0,0.00016973,2]
[365788351,1749913843182,-563.19258255,0.00016973,2]
[365788353,1749913843191,-500.0,0.00016973,2]
[365788355,1749913843201,-150.0,0.00016981,2]
[365788357,1749913843210,-150.0,0.00016981,2]
[365788359,1749913843220,-500.0,0.00016981,2]
[365788361,1749913843230,-200.0,0.00016981,2]
[365788363,1749913843247,-250.0,0.00016981,2]
[365788365,1749913843261,-150.0,0.00016981,2]
[365788367,1749913843273,-150.0,0.00016981,2]
[365788369,1749913843283,-150.0,0.00016981,2]
[365788371,1749913843292,-150.0,0.00016982,6]
[365788373,1749913843303,-1000.0,0.00016994,2]
[365788375,1749913843312,-300.0,0.00016997,2]
[365788377,1749913843321,-300.0,0.00016997,2]
[365788379,1749913843331,-545.82303676,0.00016997,2]
[365788381,1749913843340,-300.0,0.00016997,2]
[365788383,1749913843350,-1000.0,0.00016997,2]
[365788385,1749913843359,-1000.0,0.00016997,2]
[365788387,1749913843368,-1000.0,0.00016997,2]
[365788389,1749913843377,-1706.580247,0.00016997,2]
[365788392,1749913843386,-36062.6698333,0.00016997,2]
[365788395,1749913843395,-34905.536,0.00016997,2]
[365788398,1749913843405,-2199.3480127,0.00016997,2]
[365788400,1749913843414,-306.41126273,0.00016997,2]
[365788402,1749913843424,-300.0,0.00016997,2]
[365788404,1749913843433,-5326.87283276,0.00016997,2]
[365788406,1749913843443,-595853.8997098,0.00016997,2]
[365788430,1749913843666,-396.51506931,0.00016997,2]
[365788435,1749913843699,-632.59944389,0.00016997,2]
[365788436,1749913843734,-5156.16129863,0.00016997,2]
[365788496,1749913845394,-4343.09858,0.00016997,2]
[365788497,1749913845431,-16342.5300756,0.00016997,2]
[365788498,1749913845442,-9914.983622,0.00016997,2]
[365788499,1749913845454,-26985.15718737,0.00016997,2]
[365788500,1749913845465,-1503.61956088,0.00016997,2]
[365788501,1749913845646,-1510.58914516,0.00016997,2]
[365788502,1749913845682,-479.89415,0.00016997,2]
[365788507,1749913871710,219.0,0.00015184,2]
[365788508,1749913907720,314.6,0.00015912,2]
[365788509,1749913928379,4502.13325053,0.0001589,2]
[365788510,1749913928401,10000.0,0.0001589,2]
[365788511,1749913928422,9397.86674947,0.0001589,2]
[365788513,1749913990260,600.0,0.00015068,2]
[365788514,1749913993021,500.0,0.00024999,120]
[365788515,1749913999325,2.13325053,0.00015793,2]
[365788516,1749913999347,6963.45674947,0.00015793,2]
[365788517,1749914014431,1000.0,0.00015788,2]
[365788518,1749914015303,150.0,0.00015788,2]
[365788521,1749914071556,401.97008174,0.0002,30]
[365788522,1749914103168,1886.54325053,0.00015776,2]
[365788523,1749914103191,864.45674947,0.00015776,2]
[365788524,1749914120563,500.0,0.00016001,2]
[365788525,1749914129265,500.0,0.00016001,2]
[365788526,1749914136653,500.0,0.00016001,2]
[365788527,1749914142159,168.39,0.00015772,2]
[365788528,1749914144443,500.0,0.00016001,2]
[365788529,1749914152259,500.0,0.00016001,2]
[365788530,1749914160723,500.0,0.00016001,2]
[365788531,1749914169263,500.0,0.00016001,2]
[365788532,1749914178754,500.0,0.00016001,2]
[365788533,1749914183830,250.0,0.00015766,2]
[365788534,1749914186717,500.0,0.00016001,2]
[365788535,1749914194857,500.0,0.00016001,2]
[365788536,1749914203949,500.0,0.00016001,2]
[365788537,1749914210841,200.0,0.00015766,2]
[365788538,1749914215898,500.0,0.00016001,2]
[365788539,1749914229741,522.5,0.00016001,2]
[365788540,1749914292191,201.0,0.00015013,2]
[365788541,1749914292464,201.0,0.00015468,2]
[365788542,1749914292745,201.0,0.00015922,3]
[365788543,1749914324806,209.0,0.00015013,2]
[365788544,1749914335924,150.0,0.00015806,2]
[365788545,1749914409878,168.0,0.0001504,2]
[365788546,1749914422538,267.63,0.00013699,2]
[365788548,1749914599037,597.02325053,0.00015709,2]
[365788549,1749914599062,68.97674947,0.00015709,2]
[365788550,1749914599909,150.0,0.00015709,2]
[365788552,1749914652035,201.0,0.00015376,2]
[365788553,1749914652313,201.0,0.00015836,2]
[365788554,1749914684941,204.0,0.00015376,2]
[365788555,1749914711097,9175.02325053,0.000154,2]
[365788556,1749914711121,6208.60916202,0.000154,2]
[365788557,1749914720043,3791.39083798,9e-05,2]
[365788558,1749914720067,2014.21057742,9e-05,2]
[365788559,1749914720992,155.0,0.00016,2]
[365788560,1749914722436,155.0,0.00016,2]
[365788561,1749914723921,155.0,0.00016,2]
[365788562,1749914726936,7520.78942258,0.00016,2]
[365788563,1749914726962,2486.63436347,0.00016,2]
[365788564,1749914727046,753.63994342,0.000108,2]
[365788565,1749914732303,155.0,0.00016,2]
[365788566,1749914736799,1666.85013503,9e-05,2]
[365788567,1749914738428,1197.77,0.00013804,2]
[365788568,1749914740810,1818.75,0.00025,120]
[365788569,1749914743489,-600.0,0.00016007,4]
[365788570,1749914743514,-200.0,0.00016028,2]
[365788571,1749914743539,-1197.77,0.00016067,2]
[365788572,1749914743564,-500.0,0.00016164,2]
[365788573,1749914743590,-201.0,0.00016297,3]
[365788574,1749914743616,-170.78,0.000164,2]
[365788575,1749914743640,-170.78,0.000164,2]
[365788576,1749914743664,-163.42,0.000164,2]
[365788577,1749914743688,-797.31,0.00016424,2]
[365788578,1749914743712,-797.31,0.00016424,2]
[365788579,1749914743737,-600.0,0.00016438,2]
[365788580,1749914743761,-1200.0,0.00016499,2]
[365788581,1749914743783,-299.99,0.000166,4]
[365788582,1749914743806,-150.99,0.000166,2]
[365788583,1749914743830,-882.85,0.000166,2]
[365788584,1749914743853,-9055.69644958,0.000166,2]
[365788585,1749914743878,-1957.856,0.0001667,2]
[365788586,1749914743903,-207.4,0.0001667,2]
[365788587,1749914743928,-304.44,0.00016672,2]
[365788588,1749914743951,-563.49895083,0.0001668,2]
[365788589,1749914743973,-563.49895084,0.0001668,2]
[365788590,1749914743997,-1000.0,0.0001668,2]
[365788591,1749914744021,-500.0,0.0001668,2]
[365788592,1749914744047,-5734.15871482,0.0001668,2]
[365788593,1749914744071,-2500.0,0.0001668,2]
[365788594,1749914744095,-158.40630172,0.00016685,2]
[365788595,1749914744119,-922.74,0.000167,2]
[365788596,1749914744143,-170.78,0.000167,2]
[365788597,1749914744166,-797.31,0.000167,2]
[365788598,1749914744190,-312.82085448,0.00016702,2]
[365788599,1749914744214,-5734.15871476,0.00016704,2]
[365788600,1749914744240,-1246.1640891,0.00016725,2]
[365788601,1749914744265,-258.52264054,0.00016729,2]
[365788602,1749914744310,-5475.63607422,0.00016729,2]
[365788603,1749914744336,-646.52064269,0.0001675,2]
[365788604,1749914744364,-5734.15871476,0.00016753,2]
[365788605,1749914744391,-201.0,0.00016757,3]
[365788606,1749914744416,-498.0,0.00016767,2]
[365788607,1749914744440,-151.0,0.0001677,2]
[365788608,1749914744465,-151.0,0.0001677,2]
[365788609,1749914744488,-594.08918556,0.00016773,2]
[365788610,1749914744511,-500.0,0.00016773,2]
[365788611,1749914744533,-500.0,0.00016773,2]
[365788612,1749914744557,-500.0,0.00016773,2]
[365788613,1749914744581,-563.19258255,0.00016773,2]
[365788614,1749914744605,-500.0,0.00016773,2]
[365788615,1749914744629,-500.0,0.00016773,2]
[365788616,1749914744653,-500.0,0.00016773,2]
[365788617,1749914744676,-500.0,0.00016773,2]
[365788618,1749914744700,-5734.15871476,0.00016778,2]
[365788619,1749914744726,-1538.276,0.00016779,2]
[365788620,1749914744750,-500.0,0.00016779,2]
[365788621,1749914744774,-180.85129124,0.00016779,2]
[365788622,1749914744796,-371.56721226,0.00016779,2]
[365788623,1749914744819,-500.0,0.00016779,2]
[365788624,1749914744842,-180.344,0.00016779,2]
[365788625,1749914744866,-13399.85724863,0.0001678,2]
[365788626,1749914744914,-39919.65166667,0.0001678,2]
[365788627,1749914744962,-39919.65166667,0.0001678,2]
[365788628,1749914745290,-39919.65166667,0.0001678,2]
[365788629,1749914745328,-39919.65166667,0.0001678,2]
[365788630,1749914745363,-39919.65166667,0.0001678,2]
[365788631,1749914745403,-39919.65166667,0.0001678,2]
[365788632,1749914745453,-39919.65166667,0.0001678,2]
[365788633,1749914745493,-39919.65166667,0.0001678,2]
[365788634,1749914745533,-39919.65166667,0.0001678,2]
[365788635,1749914745578,-39919.65166667,0.0001678,2]
[365788636,1749914745621,-39919.65166667,0.0001678,2]
[365788637,1749914745657,-39919.65166667,0.0001678,2]
[365788638,1749914745704,-39919.65166667,0.0001678,2]
[365788639,1749914746115,-39919.65166667,0.0001678,2]
[365788640,1749914746259,-39919.65166667,0.0001678,2]
[365788641,1749914746394,-39919.65166667,0.0001678,2]
[365788642,1749914746545,-39919.65166667,0.0001678,2]
[365788643,1749914746707,-39919.65166667,0.0001678,2]
[365788644,1749914746859,-39919.65166667,0.0001678,2]
[365788645,1749914747003,-39919.65166667,0.0001678,2]
[365788646,1749914747158,-39919.65166667,0.0001678,2]
[365788647,1749914747302,-39919.65166667,0.0001678,2]
[365788648,1749914747470,-39919.65166667,0.0001678,2]
[365788649,1749914747625,-21094.46587854,0.0001678,2]
[365788650,1749914747650,-18825.18578813,0.000168,2]
[365788651,1749914747912,-39919.65166667,0.000168,2]
[365788652,1749914748130,-23156.1848452,0.000168,2]
[365788653,1749914748155,-806.89,0.000168,2]